[Event "Late-Titled-Tuesday-Blitz-February-20-2024"]
[Site "Chess.com"]
[Date "2024.02.20"]
[Round "3"]
[White "Charodej1"]
[Black "flubs"]
[Result "0-1"]
[WhiteElo "2228"]
[BlackElo "2468"]
[TimeControl "180+1"]
[EndTime "14:26:01 PST"]
[Termination "flubs won by resignation"]

1. e4 {[%clk 0:03:00.9]} 1... c6 {[%clk 0:02:55.8]} 2. d4 {[%clk 0:02:59.7]}
2... d5 {[%clk 0:02:55.7]} 3. exd5 {[%clk 0:03:00.5]} 3... Qxd5 {[%clk
0:02:54.7]} 4. c4 {[%clk 0:03:01.4]} 4... Qd8 {[%clk 0:02:54.2]} 5. Nc3 {[%clk
0:02:59.5]} 5... Nf6 {[%clk 0:02:53.5]} 6. h3 {[%clk 0:02:56.9]} 6... Bf5 {[%clk
0:02:52.7]} 7. Nf3 {[%clk 0:02:56]} 7... e6 {[%clk 0:02:52.4]} 8. Be3 {[%clk
0:02:55.6]} 8... Nbd7 {[%clk 0:02:51.7]} 9. Be2 {[%clk 0:02:55.8]} 9... Bd6
{[%clk 0:02:49.6]} 10. O-O {[%clk 0:02:47.1]} 10... Qc7 {[%clk 0:02:44.2]} 11.
Re1 {[%clk 0:02:46.7]} 11... O-O {[%clk 0:02:41.4]} 12. Rc1 {[%clk 0:02:36.7]}
12... Rfe8 {[%clk 0:02:37.1]} 13. d5 {[%clk 0:01:54.8]} 13... Rad8 {[%clk
0:02:31.6]} 14. dxc6 {[%clk 0:01:48.7]} 14... bxc6 {[%clk 0:02:30.8]} 15. Qa4
{[%clk 0:01:41.8]} 15... Nc5 {[%clk 0:02:17.4]} 16. Bxc5 {[%clk 0:01:25.8]}
16... Bxc5 {[%clk 0:02:13.8]} 17. b4 {[%clk 0:01:18]} 17... Bf8 {[%clk
0:02:06.3]} 18. Rcd1 {[%clk 0:01:13.2]} 18... a5 {[%clk 0:02:00.3]} 19. Rxd8
{[%clk 0:00:47.9]} 19... Rxd8 {[%clk 0:01:59]} 20. a3 {[%clk 0:00:42.2]} 20...
Rb8 {[%clk 0:01:50.4]} 21. b5 {[%clk 0:00:33.5]} 21... Bc5 {[%clk 0:01:30]} 22.
bxc6 {[%clk 0:00:27.6]} 22... Rb6 {[%clk 0:01:24.1]} 23. Qxa5 {[%clk 0:00:25.4]}
23... Qxc6 {[%clk 0:01:20.1]} 24. Ne5 {[%clk 0:00:19.4]} 24... Qc8 {[%clk
0:01:12.7]} 25. Nb5 {[%clk 0:00:12.2]} 25... Ra6 {[%clk 0:01:00.2]} 26. Qc3
{[%clk 0:00:12.1]} 26... Ne4 {[%clk 0:00:51.2]} 27. Qb3 {[%clk 0:00:09.6]} 0-1

[Event "Late-Titled-Tuesday-Blitz-February-20-2024"]
[Site "Chess.com"]
[Date "2024.02.20"]
[Round "3"]
[White "Sanyura"]
[Black "Fandorine"]
[Result "1-0"]
[WhiteElo "2608"]
[BlackElo "2929"]
[TimeControl "180+1"]
[EndTime "14:26:04 PST"]
[Termination "Sanyura won by resignation"]

1. e4 {[%clk 0:02:41.5]} 1... e5 {[%clk 0:02:59.3]} 2. Nf3 {[%clk 0:02:41.4]}
2... Nc6 {[%clk 0:02:59.4]} 3. Bb5 {[%clk 0:02:39.3]} 3... a6 {[%clk 0:02:59.3]}
4. Ba4 {[%clk 0:02:39.7]} 4... Bc5 {[%clk 0:02:57.3]} 5. O-O {[%clk 0:02:39.6]}
5... Nge7 {[%clk 0:02:56.5]} 6. c3 {[%clk 0:02:39.7]} 6... Ba7 {[%clk
0:02:56.5]} 7. d4 {[%clk 0:02:39.9]} 7... Ng6 {[%clk 0:02:57.1]} 8. Bg5 {[%clk
0:02:18]} 8... f6 {[%clk 0:02:54.3]} 9. Be3 {[%clk 0:02:18.4]} 9... O-O {[%clk
0:02:53.1]} 10. Re1 {[%clk 0:02:18.4]} 10... d6 {[%clk 0:02:51.5]} 11. Nbd2
{[%clk 0:02:17.5]} 11... Kh8 {[%clk 0:02:51.1]} 12. Nf1 {[%clk 0:02:16.9]} 12...
Bd7 {[%clk 0:02:50.6]} 13. h3 {[%clk 0:02:16]} 13... exd4 {[%clk 0:02:39.3]} 14.
cxd4 {[%clk 0:02:15.8]} 14... d5 {[%clk 0:02:39.4]} 15. Bxc6 {[%clk 0:02:03.8]}
15... bxc6 {[%clk 0:02:23.3]} 16. e5 {[%clk 0:02:04.2]} 16... fxe5 {[%clk
0:02:22.3]} 17. Nxe5 {[%clk 0:01:59.1]} 17... Nxe5 {[%clk 0:01:58.7]} 18. dxe5
{[%clk 0:02:00]} 18... Bxe3 {[%clk 0:01:58.4]} 19. Rxe3 {[%clk 0:02:00.6]} 19...
Be6 {[%clk 0:01:45.8]} 20. Qd4 {[%clk 0:01:59.6]} 20... Qg5 {[%clk 0:01:39.9]}
21. Rc1 {[%clk 0:01:45]} 21... Bxh3 {[%clk 0:00:54.7]} 22. Ng3 {[%clk
0:01:27.5]} 22... Rf4 {[%clk 0:00:39.4]} 23. Qd2 {[%clk 0:01:20.5]} 23... Be6
{[%clk 0:00:19]} 24. Rxc6 {[%clk 0:01:19.6]} 24... Qg4 {[%clk 0:00:16.4]} 25.
Ne2 {[%clk 0:00:52.9]} 25... d4 {[%clk 0:00:16.3]} 26. Rg3 {[%clk 0:00:52.4]}
26... Bd5 {[%clk 0:00:11.8]} 27. Nxf4 {[%clk 0:00:49.6]} 1-0

[Event "Late-Titled-Tuesday-Blitz-February-20-2024"]
[Site "Chess.com"]
[Date "2024.02.20"]
[Round "3"]
[White "Rutricks"]
[Black "DonJuan_34"]
[Result "1-0"]
[WhiteElo "2694"]
[BlackElo "2464"]
[TimeControl "180+1"]
[EndTime "14:26:09 PST"]
[Termination "Rutricks won by resignation"]

1. Nc3 {[%clk 0:03:00.9]} 1... e5 {[%clk 0:02:58]} 2. e4 {[%clk 0:03:00.6]} 2...
Nc6 {[%clk 0:02:56.7]} 3. Bc4 {[%clk 0:03:00.7]} 3... Nf6 {[%clk 0:02:55.9]} 4.
d3 {[%clk 0:03:01]} 4... Na5 {[%clk 0:02:51.4]} 5. Nge2 {[%clk 0:03:00.2]} 5...
Nxc4 {[%clk 0:02:49.4]} 6. dxc4 {[%clk 0:03:01.1]} 6... Bc5 {[%clk 0:02:47.7]}
7. h3 {[%clk 0:03:01.3]} 7... d6 {[%clk 0:02:47.2]} 8. Qd3 {[%clk 0:03:01.3]}
8... Be6 {[%clk 0:02:43.4]} 9. b3 {[%clk 0:02:58.7]} 9... h6 {[%clk 0:02:30.3]}
10. Be3 {[%clk 0:02:57]} 10... Bxe3 {[%clk 0:02:24.7]} 11. Qxe3 {[%clk
0:02:57.9]} 11... Qe7 {[%clk 0:02:14.8]} 12. O-O-O {[%clk 0:02:57.7]} 12... Nd7
{[%clk 0:02:08.8]} 13. f4 {[%clk 0:02:49.8]} 13... exf4 {[%clk 0:02:05.3]} 14.
Nxf4 {[%clk 0:02:50.7]} 14... Nf6 {[%clk 0:01:50.1]} 15. e5 {[%clk 0:02:35.1]}
15... dxe5 {[%clk 0:01:43.4]} 16. Qxe5 {[%clk 0:02:36]} 16... O-O {[%clk
0:01:38.2]} 17. Kb2 {[%clk 0:02:27.7]} 17... c6 {[%clk 0:01:33.6]} 18. Rhe1
{[%clk 0:02:27.3]} 18... Rae8 {[%clk 0:01:30.5]} 19. Rd6 {[%clk 0:01:49.4]}
19... Nd7 {[%clk 0:01:24]} 20. Qd4 {[%clk 0:01:48.8]} 20... Qf6 {[%clk
0:00:58.9]} 21. Nxe6 {[%clk 0:01:37.2]} 21... Qxd4 {[%clk 0:00:42.1]} 22. Rxd4
{[%clk 0:01:29.3]} 22... Nf6 {[%clk 0:00:31.1]} 23. Nxf8 {[%clk 0:01:23.1]}
23... Rxe1 {[%clk 0:00:30.9]} 24. Nd7 {[%clk 0:01:00.3]} 24... Ne8 {[%clk
0:00:30.8]} 25. Nc5 {[%clk 0:00:59.8]} 25... Re7 {[%clk 0:00:30.3]} 26. Rd8
{[%clk 0:00:59.1]} 26... Kh7 {[%clk 0:00:29.6]} 27. Nxb7 {[%clk 0:00:56.4]}
27... f5 {[%clk 0:00:28.5]} 28. Na5 {[%clk 0:00:55.3]} 28... c5 {[%clk
0:00:27.6]} 29. Nc6 {[%clk 0:00:51.8]} 29... Re6 {[%clk 0:00:27.7]} 30. Nxa7
{[%clk 0:00:47.5]} 30... g5 {[%clk 0:00:28.3]} 31. a4 {[%clk 0:00:47.3]} 31...
h5 {[%clk 0:00:26.9]} 32. Nd5 {[%clk 0:00:47.6]} 32... f4 {[%clk 0:00:26.5]} 33.
Rxe8 {[%clk 0:00:39.1]} 1-0

[Event "Late-Titled-Tuesday-Blitz-February-20-2024"]
[Site "Chess.com"]
[Date "2024.02.20"]
[Round "3"]
[White "Malev212"]
[Black "cukricek"]
[Result "1-0"]
[WhiteElo "2685"]
[BlackElo "2464"]
[TimeControl "180+1"]
[EndTime "14:26:09 PST"]
[Termination "Malev212 won on time"]

1. e4 {[%clk 0:02:53.9]} 1... c5 {[%clk 0:02:59.8]} 2. Nf3 {[%clk 0:02:53]} 2...
g6 {[%clk 0:02:59.5]} 3. c4 {[%clk 0:02:49.5]} 3... Nc6 {[%clk 0:02:58.3]} 4. d4
{[%clk 0:02:49.3]} 4... cxd4 {[%clk 0:02:58]} 5. Nxd4 {[%clk 0:02:50]} 5... Nf6
{[%clk 0:02:54.7]} 6. Nc3 {[%clk 0:02:48.9]} 6... d6 {[%clk 0:02:54.6]} 7. f3
{[%clk 0:02:41.2]} 7... Nxd4 {[%clk 0:02:51.7]} 8. Qxd4 {[%clk 0:02:40.2]} 8...
Bg7 {[%clk 0:02:52.2]} 9. Be3 {[%clk 0:02:40]} 9... O-O {[%clk 0:02:52.7]} 10.
Qd2 {[%clk 0:02:39.6]} 10... a5 {[%clk 0:02:51.6]} 11. b3 {[%clk 0:02:37.4]}
11... a4 {[%clk 0:02:31.2]} 12. b4 {[%clk 0:02:35.9]} 12... a3 {[%clk
0:02:27.8]} 13. Rc1 {[%clk 0:02:28.3]} 13... Be6 {[%clk 0:02:27.8]} 14. Be2
{[%clk 0:02:21.5]} 14... Nd7 {[%clk 0:02:28.1]} 15. O-O {[%clk 0:02:19.5]} 15...
Nb6 {[%clk 0:01:57.5]} 16. Nd5 {[%clk 0:02:13.7]} 16... Bxd5 {[%clk 0:01:53.8]}
17. exd5 {[%clk 0:02:11]} 17... Rc8 {[%clk 0:01:43.4]} 18. Rfd1 {[%clk
0:02:01.6]} 18... Nd7 {[%clk 0:01:25.4]} 19. c5 {[%clk 0:02:00.1]} 19... Bb2
{[%clk 0:01:17.2]} 20. Rc2 {[%clk 0:01:58.7]} 20... Nf6 {[%clk 0:01:14.1]} 21.
c6 {[%clk 0:01:47.6]} 21... Qc7 {[%clk 0:01:11.3]} 22. b5 {[%clk 0:01:46.7]}
22... b6 {[%clk 0:01:06]} 23. Rxb2 {[%clk 0:01:40.6]} 23... axb2 {[%clk
0:01:05.2]} 24. Qxb2 {[%clk 0:01:41.2]} 24... Ra8 {[%clk 0:01:04]} 25. Bc4
{[%clk 0:01:36.7]} 25... Ra4 {[%clk 0:00:42]} 26. Bb3 {[%clk 0:01:33.1]} 26...
Rb4 {[%clk 0:00:22.3]} 27. a4 {[%clk 0:01:31.5]} 27... Ra8 {[%clk 0:00:22.4]}
28. Qc2 {[%clk 0:01:24.1]} 28... Rh4 {[%clk 0:00:09.3]} 29. Rd4 {[%clk
0:01:20.5]} 29... Rxd4 {[%clk 0:00:07.9]} 30. Bxd4 {[%clk 0:01:19.9]} 30... Qc8
{[%clk 0:00:07.4]} 31. Bxb6 {[%clk 0:01:16.8]} 31... Rb8 {[%clk 0:00:04.8]} 32.
Bd4 {[%clk 0:01:15.7]} 32... Qc7 {[%clk 0:00:04.4]} 33. Qc3 {[%clk 0:01:11.2]}
33... Ne8 {[%clk 0:00:01.7]} 34. Bc4 {[%clk 0:01:07.7]} 1-0

[Event "Late-Titled-Tuesday-Blitz-February-20-2024"]
[Site "Chess.com"]
[Date "2024.02.20"]
[Round "3"]
[White "harkow"]
[Black "ritanovikova"]
[Result "1-0"]
[WhiteElo "2435"]
[BlackElo "2196"]
[TimeControl "180+1"]
[EndTime "14:26:10 PST"]
[Termination "harkow won on time"]

1. d4 {[%clk 0:03:00.9]} 1... g6 {[%clk 0:02:57]} 2. c4 {[%clk 0:03:01.3]} 2...
Bg7 {[%clk 0:02:57.8]} 3. Nc3 {[%clk 0:03:01.8]} 3... d6 {[%clk 0:02:58.1]} 4.
e4 {[%clk 0:03:02]} 4... Nf6 {[%clk 0:02:57.3]} 5. f4 {[%clk 0:03:02.3]} 5...
O-O {[%clk 0:02:55]} 6. Nf3 {[%clk 0:03:02.7]} 6... Bg4 {[%clk 0:02:52.2]} 7.
Be2 {[%clk 0:03:02.4]} 7... Nc6 {[%clk 0:02:51.2]} 8. d5 {[%clk 0:03:02.3]} 8...
Bxf3 {[%clk 0:02:44.6]} 9. Bxf3 {[%clk 0:03:02.4]} 9... Na5 {[%clk 0:02:43.9]}
10. Qe2 {[%clk 0:02:58.9]} 10... c5 {[%clk 0:02:37.4]} 11. O-O {[%clk 0:02:55]}
11... a6 {[%clk 0:02:25.4]} 12. Bd2 {[%clk 0:02:55.1]} 12... Ne8 {[%clk
0:02:11.2]} 13. e5 {[%clk 0:02:55]} 13... Nc7 {[%clk 0:02:08.9]} 14. Ne4 {[%clk
0:02:16.9]} 14... Ne8 {[%clk 0:01:50]} 15. Bc3 {[%clk 0:02:15.7]} 15... b5
{[%clk 0:01:45.9]} 16. b3 {[%clk 0:02:12.5]} 16... bxc4 {[%clk 0:01:42.2]} 17.
bxc4 {[%clk 0:02:12.3]} 17... h6 {[%clk 0:01:15.9]} 18. Rae1 {[%clk 0:02:09.5]}
18... f5 {[%clk 0:01:13.5]} 19. exf6 {[%clk 0:02:07.3]} 19... Nxf6 {[%clk
0:01:06.9]} 20. Nd2 {[%clk 0:02:02.5]} 20... Re8 {[%clk 0:00:57.4]} 21. Bg4
{[%clk 0:01:53.1]} 21... Kh7 {[%clk 0:00:56.1]} 22. Be6 {[%clk 0:01:47]} 22...
Qc7 {[%clk 0:00:38]} 23. Qd3 {[%clk 0:01:42.1]} 23... Rf8 {[%clk 0:00:32.5]} 24.
Nf3 {[%clk 0:01:39.9]} 24... Nh5 {[%clk 0:00:15.1]} 25. Bxg7 {[%clk 0:01:30.4]}
25... Kxg7 {[%clk 0:00:11.8]} 26. Nh4 {[%clk 0:01:24.9]} 26... Nxf4 {[%clk
0:00:10.5]} 27. Rxf4 {[%clk 0:01:22.9]} 27... Rxf4 {[%clk 0:00:11.2]} 28. Qxg6+
{[%clk 0:01:22.6]} 28... Kf8 {[%clk 0:00:11.2]} 29. Qxh6+ {[%clk 0:01:22.8]}
29... Ke8 {[%clk 0:00:11.5]} 30. Qxf4 {[%clk 0:01:21.6]} 30... Qb6 {[%clk
0:00:09.6]} 31. Qf7+ {[%clk 0:01:17.6]} 31... Kd8 {[%clk 0:00:09.9]} 32. Qf8+
{[%clk 0:01:18.1]} 32... Kc7 {[%clk 0:00:10]} 33. Qxa8 {[%clk 0:01:11.3]} 1-0

[Event "Late-Titled-Tuesday-Blitz-February-20-2024"]
[Site "Chess.com"]
[Date "2024.02.20"]
[Round "3"]
[White "Shankland"]
[Black "gahryman"]
[Result "0-1"]
[WhiteElo "2938"]
[BlackElo "2694"]
[TimeControl "180+1"]
[EndTime "14:26:12 PST"]
[Termination "gahryman won by checkmate"]

1. e4 {[%clk 0:03:00.9]} 1... c5 {[%clk 0:02:59.4]} 2. Nf3 {[%clk 0:03:01.1]}
2... Nc6 {[%clk 0:02:59.7]} 3. d4 {[%clk 0:03:00.6]} 3... cxd4 {[%clk
0:02:59.3]} 4. Nxd4 {[%clk 0:03:01.3]} 4... e5 {[%clk 0:03:00]} 5. Nb5 {[%clk
0:03:00.7]} 5... d6 {[%clk 0:03:00.4]} 6. N1c3 {[%clk 0:03:00.9]} 6... a6 {[%clk
0:03:00.4]} 7. Na3 {[%clk 0:03:01]} 7... Be7 {[%clk 0:03:01.1]} 8. Nc4 {[%clk
0:02:59.8]} 8... Nf6 {[%clk 0:03:00.5]} 9. g3 {[%clk 0:02:58.2]} 9... b5 {[%clk
0:02:57.7]} 10. Ne3 {[%clk 0:02:57.6]} 10... h5 {[%clk 0:02:58.4]} 11. Ncd5
{[%clk 0:02:53]} 11... h4 {[%clk 0:02:46.1]} 12. Bg2 {[%clk 0:02:51.1]} 12... h3
{[%clk 0:02:45.7]} 13. Bf3 {[%clk 0:02:51]} 13... Nd4 {[%clk 0:02:45.5]} 14. c3
{[%clk 0:02:49]} 14... Nxf3+ {[%clk 0:02:41.9]} 15. Qxf3 {[%clk 0:02:49.6]}
15... Be6 {[%clk 0:02:40.4]} 16. a4 {[%clk 0:02:43.2]} 16... Nxd5 {[%clk
0:02:28]} 17. Nxd5 {[%clk 0:02:41.9]} 17... Bxd5 {[%clk 0:02:11.9]} 18. exd5
{[%clk 0:02:41.7]} 18... O-O {[%clk 0:02:12.5]} 19. O-O {[%clk 0:02:41.7]} 19...
Qd7 {[%clk 0:02:10.3]} 20. Bd2 {[%clk 0:02:33.5]} 20... bxa4 {[%clk 0:02:06.8]}
21. Qe4 {[%clk 0:02:31]} 21... Rfb8 {[%clk 0:01:50.8]} 22. Bc1 {[%clk
0:02:31.1]} 22... Rb3 {[%clk 0:01:13.5]} 23. Qxa4 {[%clk 0:02:29]} 23... Qb7
{[%clk 0:01:12.8]} 24. Rd1 {[%clk 0:02:21.1]} 24... Rb5 {[%clk 0:00:58.8]} 25.
Qe4 {[%clk 0:02:11.3]} 25... Rf8 {[%clk 0:00:34]} 26. c4 {[%clk 0:01:44.9]}
26... Rb4 {[%clk 0:00:33.8]} 27. Qg4 {[%clk 0:01:18]} 27... f5 {[%clk
0:00:32.9]} 28. Qxh3 {[%clk 0:01:18.2]} 28... Rxc4 {[%clk 0:00:33.2]} 29. Qh5
{[%clk 0:01:16.7]} 29... f4 {[%clk 0:00:31.1]} 30. Qg4 {[%clk 0:01:15]} 30...
Rc2 {[%clk 0:00:22.5]} 31. Ra3 {[%clk 0:01:07.3]} 31... Bd8 {[%clk 0:00:18.3]}
32. gxf4 {[%clk 0:01:03.5]} 32... Bb6 {[%clk 0:00:16.8]} 33. Kh1 {[%clk
0:01:01.8]} 33... Rxf2 {[%clk 0:00:16.1]} 34. Rg1 {[%clk 0:01:00.6]} 34... Qxd5+
{[%clk 0:00:15.6]} 35. Rg2 {[%clk 0:00:57.2]} 35... Rf1# {[%clk 0:00:15.7]} 0-1

[Event "Late-Titled-Tuesday-Blitz-February-20-2024"]
[Site "Chess.com"]
[Date "2024.02.20"]
[Round "3"]
[White "rdarruda"]
[Black "ChEsper99"]
[Result "1-0"]
[WhiteElo "2528"]
[BlackElo "2268"]
[TimeControl "180+1"]
[EndTime "14:26:16 PST"]
[Termination "rdarruda won by resignation"]

1. Nf3 {[%clk 0:03:00.9]} 1... c5 {[%clk 0:02:55.8]} 2. c4 {[%clk 0:03:00.1]}
2... g6 {[%clk 0:02:55.3]} 3. Nc3 {[%clk 0:02:59.9]} 3... Bg7 {[%clk 0:02:55.7]}
4. g3 {[%clk 0:03:00.3]} 4... e6 {[%clk 0:02:54.1]} 5. Bg2 {[%clk 0:03:00.5]}
5... Nc6 {[%clk 0:02:50.6]} 6. O-O {[%clk 0:02:59.2]} 6... Nge7 {[%clk 0:02:48]}
7. e3 {[%clk 0:02:58.6]} 7... O-O {[%clk 0:02:41.1]} 8. d4 {[%clk 0:02:58.1]}
8... cxd4 {[%clk 0:02:39.7]} 9. Nxd4 {[%clk 0:02:55.5]} 9... b6 {[%clk
0:02:37.6]} 10. Ndb5 {[%clk 0:02:46.6]} 10... a6 {[%clk 0:02:12.5]} 11. Nd6
{[%clk 0:02:45.4]} 11... Nf5 {[%clk 0:02:12.8]} 12. Nxf5 {[%clk 0:02:44.5]}
12... gxf5 {[%clk 0:02:12.3]} 13. e4 {[%clk 0:02:32.7]} 13... fxe4 {[%clk
0:02:10.6]} 14. Nxe4 {[%clk 0:02:33.6]} 14... d5 {[%clk 0:01:45.7]} 15. cxd5
{[%clk 0:02:31.7]} 15... exd5 {[%clk 0:01:37.4]} 16. Bg5 {[%clk 0:02:17.3]}
16... f6 {[%clk 0:00:51.5]} 17. Nxf6+ {[%clk 0:02:16.3]} 17... Bxf6 {[%clk
0:00:51.3]} 18. Qxd5+ {[%clk 0:02:15.1]} 18... Kg7 {[%clk 0:00:39.7]} 19. Qxc6
{[%clk 0:02:03.4]} 19... Ra7 {[%clk 0:00:14.2]} 20. Bxf6+ {[%clk 0:02:02.6]}
20... Rxf6 {[%clk 0:00:12.7]} 21. Qc3 {[%clk 0:01:58.1]} 21... Rc7 {[%clk
0:00:11.7]} 22. Rad1 {[%clk 0:01:46.3]} 22... Rd7 {[%clk 0:00:02.3]} 23. Rxd7+
{[%clk 0:01:41.9]} 23... Bxd7 {[%clk 0:00:03.2]} 24. Rd1 {[%clk 0:01:39.7]}
24... Qe7 {[%clk 0:00:03.5]} 25. h4 {[%clk 0:01:34]} 25... Bb5 {[%clk
0:00:03.5]} 26. g4 {[%clk 0:01:21.4]} 26... Kg6 {[%clk 0:00:03.1]} 27. h5+
{[%clk 0:01:03.9]} 27... Kf7 {[%clk 0:00:03.3]} 28. Bd5+ {[%clk 0:00:55.2]}
28... Kf8 {[%clk 0:00:03.3]} 29. g5 {[%clk 0:00:50.6]} 29... Qg7 {[%clk
0:00:02.7]} 30. Qxf6+ {[%clk 0:00:49.5]} 30... Qxf6 {[%clk 0:00:02.1]} 31. gxf6
{[%clk 0:00:50.4]} 1-0

[Event "Late-Titled-Tuesday-Blitz-February-20-2024"]
[Site "Chess.com"]
[Date "2024.02.20"]
[Round "3"]
[White "MusicCityMaster"]
[Black "RichardShtivelband"]
[Result "1-0"]
[WhiteElo "2551"]
[BlackElo "2340"]
[TimeControl "180+1"]
[EndTime "14:26:17 PST"]
[Termination "MusicCityMaster won by resignation"]

1. d4 {[%clk 0:03:00.9]} 1... Nf6 {[%clk 0:02:59]} 2. c4 {[%clk 0:03:00.6]} 2...
c6 {[%clk 0:02:57.4]} 3. Nf3 {[%clk 0:02:59.6]} 3... d5 {[%clk 0:02:57.4]} 4. e3
{[%clk 0:03:00.2]} 4... g6 {[%clk 0:02:55.2]} 5. h3 {[%clk 0:02:57.2]} 5... Bg7
{[%clk 0:02:54.8]} 6. Nbd2 {[%clk 0:02:56.2]} 6... O-O {[%clk 0:02:54.4]} 7. Bd3
{[%clk 0:02:55.6]} 7... Nbd7 {[%clk 0:02:52.6]} 8. O-O {[%clk 0:02:52.9]} 8...
b6 {[%clk 0:02:50.3]} 9. b3 {[%clk 0:02:52.6]} 9... a5 {[%clk 0:02:49.1]} 10.
Bb2 {[%clk 0:02:51.4]} 10... Bb7 {[%clk 0:02:47]} 11. Ne5 {[%clk 0:02:49.9]}
11... Nxe5 {[%clk 0:02:45.6]} 12. dxe5 {[%clk 0:02:50]} 12... Nd7 {[%clk
0:02:45.8]} 13. f4 {[%clk 0:02:46.5]} 13... e6 {[%clk 0:02:43.1]} 14. cxd5
{[%clk 0:02:29.1]} 14... cxd5 {[%clk 0:02:41.6]} 15. Rc1 {[%clk 0:02:25.4]}
15... Rc8 {[%clk 0:02:33.2]} 16. Ba3 {[%clk 0:02:16.2]} 16... Re8 {[%clk
0:02:31.8]} 17. Bb5 {[%clk 0:02:13]} 17... Bf8 {[%clk 0:02:25]} 18. Bxf8 {[%clk
0:02:08.7]} 18... Rxf8 {[%clk 0:02:25.9]} 19. Bxd7 {[%clk 0:02:04.6]} 19... Qxd7
{[%clk 0:02:25.4]} 20. Nf3 {[%clk 0:01:55.4]} 20... Ba6 {[%clk 0:02:24.8]} 21.
Rf2 {[%clk 0:01:50.1]} 21... Rxc1 {[%clk 0:02:18.2]} 22. Qxc1 {[%clk 0:01:49.8]}
22... Bd3 {[%clk 0:02:10]} 23. Nd4 {[%clk 0:01:47.8]} 23... Rc8 {[%clk
0:02:08.6]} 24. Qd1 {[%clk 0:01:44.1]} 24... Be4 {[%clk 0:02:07.5]} 25. Qg4
{[%clk 0:01:37.3]} 25... Rc1+ {[%clk 0:02:02.9]} 26. Kh2 {[%clk 0:01:37.3]}
26... Qc8 {[%clk 0:01:58.7]} 27. Qg5 {[%clk 0:01:29.9]} 27... Re1 {[%clk
0:01:45.1]} 28. Nb5 {[%clk 0:01:14.8]} 28... h6 {[%clk 0:01:14]} 29. Qf6 {[%clk
0:00:56.1]} 29... Qc1 {[%clk 0:01:13]} 30. Nd6 {[%clk 0:00:46.2]} 30... Rh1+
{[%clk 0:01:07.7]} 31. Kg3 {[%clk 0:00:46.2]} 31... Qxe3+ {[%clk 0:01:07.5]} 32.
Rf3 {[%clk 0:00:45.9]} 32... Qe1+ {[%clk 0:00:52.7]} 33. Rf2 {[%clk 0:00:39.5]}
33... Qc3+ {[%clk 0:00:52.1]} 34. Kh4 {[%clk 0:00:31.8]} 34... Qc7 {[%clk
0:00:49.3]} 35. Nxe4 {[%clk 0:00:30.3]} 35... dxe4 {[%clk 0:00:47.1]} 36. Rd2
{[%clk 0:00:30.6]} 1-0

[Event "Late-Titled-Tuesday-Blitz-February-20-2024"]
[Site "Chess.com"]
[Date "2024.02.20"]
[Round "3"]
[White "akanga001"]
[Black "Tugrik1969"]
[Result "0-1"]
[WhiteElo "2019"]
[BlackElo "2382"]
[TimeControl "180+1"]
[EndTime "14:26:17 PST"]
[Termination "Tugrik1969 won by resignation"]

1. d4 {[%clk 0:03:00.9]} 1... Nf6 {[%clk 0:02:59.6]} 2. c4 {[%clk 0:02:59.9]}
2... e6 {[%clk 0:02:59.9]} 3. Nc3 {[%clk 0:02:53.9]} 3... c5 {[%clk 0:03:00.8]}
4. d5 {[%clk 0:02:52.7]} 4... d6 {[%clk 0:03:01.4]} 5. e4 {[%clk 0:02:52]} 5...
g6 {[%clk 0:02:55.6]} 6. Nge2 {[%clk 0:02:51.9]} 6... Bg7 {[%clk 0:02:55.5]} 7.
Ng3 {[%clk 0:02:51.3]} 7... O-O {[%clk 0:02:54.2]} 8. Be2 {[%clk 0:02:50.9]}
8... exd5 {[%clk 0:02:54.2]} 9. cxd5 {[%clk 0:02:50.3]} 9... h5 {[%clk
0:02:43.6]} 10. Bg5 {[%clk 0:02:48.5]} 10... Nbd7 {[%clk 0:02:39.6]} 11. Qd2
{[%clk 0:02:47.7]} 11... a6 {[%clk 0:02:35.8]} 12. a4 {[%clk 0:02:46.9]} 12...
Qc7 {[%clk 0:02:36]} 13. Bh6 {[%clk 0:02:45.1]} 13... h4 {[%clk 0:02:12.2]} 14.
Bxg7 {[%clk 0:02:31.7]} 14... Kxg7 {[%clk 0:02:12.4]} 15. Nf5+ {[%clk
0:01:45.8]} 15... gxf5 {[%clk 0:02:12.2]} 16. Qg5+ {[%clk 0:01:45.2]} 16... Kh8
{[%clk 0:02:12.7]} 17. Qxh4+ {[%clk 0:01:42.8]} 17... Nh7 {[%clk 0:02:12.3]} 18.
exf5 {[%clk 0:01:39.7]} 18... Qd8 {[%clk 0:02:02.9]} 19. Qf4 {[%clk 0:01:37.1]}
19... Ne5 {[%clk 0:01:48]} 20. O-O-O {[%clk 0:01:34.6]} 20... Qg5 {[%clk
0:01:47.8]} 21. Qxg5 {[%clk 0:01:28.5]} 21... Nxg5 {[%clk 0:01:47.9]} 22. f4
{[%clk 0:01:28.7]} 22... b5 {[%clk 0:01:32.6]} 23. axb5 {[%clk 0:01:26.3]} 23...
axb5 {[%clk 0:01:33.5]} 24. fxg5 {[%clk 0:01:24.7]} 24... Bxf5 {[%clk
0:01:01.1]} 25. Nxb5 {[%clk 0:01:22.9]} 25... c4 {[%clk 0:00:52.5]} 26. Nxd6
{[%clk 0:01:21]} 26... Bd3 {[%clk 0:00:52.8]} 27. Bh5 {[%clk 0:01:04.2]} 27...
c3 {[%clk 0:00:42.3]} 28. bxc3 {[%clk 0:00:44.3]} 28... Ra2 {[%clk 0:00:41.3]}
29. Rxd3 {[%clk 0:00:35.7]} 29... Nxd3+ {[%clk 0:00:41.2]} 30. Kb1 {[%clk
0:00:32.3]} 30... Rb2+ {[%clk 0:00:41.2]} 0-1